Cogmind - Beta 15 @@@ ROGUE MODE // 2025.05.05 @ 23:11:14 Player: Cereal Killer Result: Destroyed by G-50 Soldier with Heavy Laser Performance ------------- Evolutions (4) 2000 Regions Visited (5) 1000 Robots Destroyed (39) 195 Value Destroyed (1669) 1669 Prototype IDs (6) 120 Alien Tech Used (0) 0 Bonus (875) 875 TOTAL SCORE: 5859 Bonus ------- High Alert Combat Kills 75 Registered with UFD 300 Met Optimus in HQ 500 Cogmind --------- Core Integrity 0/850 Matter 185/300 Energy 309/310 System Corruption 7% Temperature Cool (21) Movement Flying (34) Location -6/Factory Parts ------- > --- POWER (1) -------- Fission Core > --- PROPULSION (3) --- Nuclear Pulse Thruster Nuclear Pulse Thruster Nuclear Pulse Thruster > --- UTILITY (7) ------ Improved Signal Interpreter Hacking Suite Hacking Suite Hacking Suite > --- WEAPON (4) ------- Companion Sword > --- INVENTORY (5) ---- Compact Wheel Nuclear Pulse Thruster Scrap Suit Surveybot 17 Chip Peak State ------------ > --- POWER ------------ Fission Core > --- PROPULSION ------- Compact Wheel Armored Huge Wheel > --- UTILITY ---------- Advanced Heat Sink Large Storage Unit Improved Melee Analysis Suite Improved Melee Analysis Suite Improved Melee Analysis Suite Utility Shielding Improved Shield Generator > --- WEAPON ----------- Advanced Assault Cannon Guided EMP Blaster Companion Sword > --- INVENTORY -------- Fission Core Fission Core Scrap Suit Coolant Injector Large Storage Unit Advanced Sensor Array Improved Signal Interpreter Surveybot 17 Chip Advanced Targeting Computer Armor Integrity Analyzer CPS Tube CPS Tube DRS Beacon Botcube [Rating: 65] Favorites ----------- Power Nuclear Core Engine Ion Engine Power Core Nuclear Core Propulsion Wheel Treads Light Treads Wheel Wheel Hover Unit Cooled Aerolev Unit Flight Unit Nuclear Pulse Thruster Utility Improved Melee Analysis Suite Device Advanced Heat Sink Storage Large Storage Unit Processor Improved Melee Analysis Suite Hackware Hacking Suite Protection Utility Shielding Weapon Antimatter Cannon Energy Gun Medium Laser Energy Cannon Plasma Cannon Ballistic Gun Light Assault Rifle Ballistic Cannon Antimatter Cannon Launcher Guided EMP Blaster Special Weapon Remote Datajack Slashing Weapon Companion Sword Build | -11 -10 -10 -10 -9 -6 ------- Run | Yrd Mat Min Sub Scr Fac Slots Evolved 8 | . . . . . 8 Power . | . . . . . . Propulsion 1 | . . . . . 1 Utility 5 | . . . . . 5 Weapon 2 | . . . . . 2 Parts Attached 59 | 5 . 3 6 1 44 Power 7 | 1 . . 2 . 4 Engine 4 | 1 . . 2 . 1 Core 3 | . . . . . 3 Reactor . | . . . . . . Propulsion 17 | 2 . . 2 . 13 Treads 1 | . . . . . 1 Leg . | . . . . . . Wheel 10 | 2 . . 2 . 6 Hover 1 | . . . . . 1 Flight 5 | . . . . . 5 Utility 22 | . . 2 1 1 18 Device 8 | . . . . . 8 Storage 3 | . . 2 . 1 . Processor 5 | . . . . . 5 Hackware 3 | . . . . . 3 Protection 3 | . . . 1 . 2 Artifact . | . . . . . . Weapon 13 | 2 . 1 1 . 9 Energy Gun 2 | 1 . . 1 . . Energy Cannon 2 | . . . . . 2 Ballistic Gun 1 | 1 . . . . . Ballistic Cannon 4 | . . . . . 4 Launcher 1 | . . . . . 1 Special Weapon 2 | . . 1 . . 1 Impact Weapon . | . . . . . . Slashing Weapon 1 | . . . . . 1 Piercing Weapon . | . . . . . . Special Melee Weapon . | . . . . . . Unidentified Prototypes 6 | . . . . . 6 Parts Lost 31 | . . . 7 . 24 Power 5 | . . . 3 . 2 Propulsion 9 | . . . 1 . 8 Utility 11 | . . . 1 . 10 Weapon 6 | . . . 2 . 4 Highest Loss Streak 11 | . . . 6 . 11 To Critical Strikes . | . . . . . . Average Backups 9 | 1 4 5 9 10 10 Power . | . 1 1 1 . . Propulsion . | . . . 1 1 . Utility 4 | . 1 2 3 4 5 Weapon 1 | . 1 2 2 2 . Tool/Special . | . . . . . . Unused Backups 20 | . . . . 5 15 Power 3 | . . . . . 3 Propulsion 2 | . . . . . 2 Utility 9 | . . . . 2 7 Weapon 2 | . . . . 2 . Tool/Special 4 | . . . . 1 3 Average Slot Usage (%) 79 | . 71 81 92 69 82 Engine 2 | . 14 14 11 . . Core 2 | . . . . . 4 Wheel 20 | . 28 28 28 27 13 Flight 1 | . . . . . 2 Device 6 | . . . . . 11 Storage 8 | . . 10 14 14 5 Processor 9 | . . . . . 17 Protection 3 | . . . 9 . 4 Energy Gun 6 | . 14 14 21 13 . Ballistic Gun 5 | . 14 14 1 13 . Ballistic Cannon 4 | . . . . . 8 Special Weapon 1 | . . . 5 . 1 Slashing Weapon 3 | . . . . . 5 Peak Build Rating 65 | 5 5 7 8 11 65 Average Rating 31 | 3 5 5 7 8 50 On Entrance 5 | . 5 5 6 7 8 Naked Turns 34 | . . . . . 34 Heaviest Build 64 | 8 8 18 22 23 64 Greatest Support 44 | 20 20 20 30 30 44 Greatest Overweight (x) 5 | . . . 1 2 5 Average Overweight (x) . | . . . . . . Largest Inventory Capacity 15 | 5 5 10 10 15 15 Average Capacity 12 | 5 5 7 10 12 13 Most Carried 15 | 5 5 9 10 15 15 Average Carried 11 | 2 4 6 8 11 13 Final Capacity 15 | 5 5 10 10 15 5 Final Carried 15 | 3 5 9 9 15 5 Class Distribution -------------------- 78% | Mutant 8% | Tank 7% | Scavenger-Skirmisher Dominant Class ---------------- Mutant | -10/Materials Mutant | -10/Mines Mutant | -10/Subcaves Mutant | -9/Scraptown Mutant | -6/Factory Resources | -11 -10 -10 -10 -9 -6 ----------- Run | Yrd Mat Min Sub Scr Fac Matter Collected 930 | 186 73 15 104 . 552 Remotely . | . . . . . . Salvage Created 1987 | . 93 55 162 . 1677 Parts 94 | . 2 5 8 . 79 Haulers Intercepted 1 | . . . . . 1 Recyclers Shooed 1 | . . . . . 1 Parts Field Recycled . | . . . . . . Retrieved Matter . | . . . . . . Parts Self-Destructed 12 | . . . 12 . . Prevented . | . . . . . . Kills | -11 -10 -10 -10 -9 -6 ------- Run | Yrd Mat Min Sub Scr Fac Combat Hostiles Destroyed 30 | . 2 . 3 . 25 Melee 20 | . . . . . 20 Guns 5 | . 2 . 3 . . Cannons 1 | . . . . . 1 AOE 3 | . . . . . 3 Classes Destroyed 11 | . 1 1 1 . 8 Worker 2 | . . . . . 2 Builder 1 | . . . . . 1 Tunneler 2 | . . 2 . . . Hauler 1 | . . . . . 1 Recycler 2 | . . . . . 2 Operator 1 | . . . . . 1 Grunt 19 | . 2 . . . 17 Sentry 4 | . . . . . 4 Hunter 1 | . . . . . 1 Programmer 3 | . . . . . 3 Subdweller 3 | . . . 3 . . Best Kill Streak 5 | . 2 2 2 . 5 Combat Bots Only 5 | . 2 . 2 . 5 Max Kills in Single Turn 3 | . 1 1 1 . 3 Gunslinging . | . . . . . . Exploded 3 | . . . . . 3 Melee 1 | . . . . . 1 Uniques/NPCs Destroyed . | . . . . . . Combat | -11 -10 -10 -10 -9 -6 -------- Run | Yrd Mat Min Sub Scr Fac Hostile Shots Fired 422 | . 12 . 42 . 368 Missed 138 | . 4 . 14 . 120 Hits 284 | . 8 . 28 . 248 Projectile 284 | . 8 . 28 . 248 AOE 2 | . . . . . 2 Critical Strikes 10 | . . . 2 . 8 Part Disruptions 1 | . . . . . 1 Damage Taken 4109 | . 89 . 584 . 3436 Core 1028 | . 11 . 165 . 852 Absorbed by Shields 534 | . . . . . 534 Redirected to Shielding 52 | . . . . . 52 Core Remaining (%) 64 | 100 . . . 29 . Volleys Fired 75 | . 9 8 35 . 23 Largest 2 | . 2 2 2 . 2 Hottest 140 | . 70 100 140 . 66 Shots Fired 128 | . 18 15 61 . 34 Gun 84 | . 18 14 52 . . Cannon 28 | . . . . . 28 Launcher 2 | . . . . . 2 Special 14 | . . 1 9 . 4 Kinetic 51 | . 9 7 7 . 28 Thermal 52 | . 9 8 35 . . Explosive . | . . . . . . Electromagnetic 21 | . . . 19 . 2 Robot Hit Streak 15 | . 7 5 13 . 15 Robot Miss Streak 5 | . 2 1 2 . 5 Penetration Max . | . . . . . . Secondary Targets . | . . . . . . Shots Hit Robots 152 | . 13 7 37 . 95 Core Hits 64 | . 4 3 11 . 46 Critical Kills . | . . . . . . Critical Parts Destroyed . | . . . . . . Critical Strikes 14 | . 2 1 1 . 10 Burn 4 | . 2 1 1 . . Blast 4 | . . . . . 4 Melee Attacks 99 | . . . . . 99 Impact . | . . . . . . Slashing 99 | . . . . . 99 Piercing . | . . . . . . Sneak Attacks 7 | . . . . . 7 Combat Hostiles . | . . . . . . Follow-up Attacks 2 | . . . . . 2 Damage Inflicted 5973 | . 137 71 395 . 5370 Guns 603 | . 137 71 395 . . Cannons 409 | . . . . . 409 Explosions 1108 | . . . . . 1108 Melee 3853 | . . . . . 3853 Ramming . | . . . . . . Kinetic 563 | . 61 32 61 . 409 Thermal 917 | . 76 39 211 . 591 Explosive . | . . . . . . Electromagnetic 640 | . . . 123 . 517 Impact . | . . . . . . Slashing 3853 | . . . . . 3853 Piercing . | . . . . . . Highest Corruption 7 | . . . . . 7 Average Corruption 3 | . . . . . 3 Corruption Purged . | . . . . . . Corruption Blocked . | . . . . . . Effects 34 | . . . . . 34 Message Errors 7 | . . . . . 7 Matter Fused 6 | . . . . . 6 Heat Flow Errors 2 | . . . . . 2 Energy Discharges 2 | . . . . . 2 Parts Rejected 1 | . . . . . 1 Parts Fused 2 | . . . . . 2 Data Loss (minor) 9 | . . . . . 9 Data Loss (major) 1 | . . . . . 1 Misfires 2 | . . . . . 2 Alerts 2 | . . . . . 2 Overload Shots . | . . . . . . Overflow Damage 421 | . . . . . 421 Projectiles 63 | . . . . . 63 Explosions 83 | . . . . . 83 Melee 275 | . . . . . 275 Knockbacks 3 | . . . . . 3 Impact . | . . . . . . Kinetic 3 | . . . . . 3 Secondary . | . . . . . . Self-Inflicted Damage 162 | . . . . . 162 Shots 4 | . . . . . 4 Rammed . | . . . . . . Targets Rammed . | . . . . . . Kicked . | . . . . . . Crushed . | . . . . . . Highest Temperature 114 | . 114 90 1 . 112 Average Temperature 49 | . 63 37 1 . 50 Received Heat Transfer 1277 | . 48 . 96 . 1133 Siege Activations . | . . . . . . Martial Activations . | . . . . . . Shielding Activations . | . . . . . . Robots Disrupted 1 | . . . . . 1 Combat Hostiles 1 | . . . . . 1 Robots Corrupted 1 | . . . . . 1 Combat Hostiles 1 | . . . . . 1 Parts Fried 1 | . . . . . 1 Impact Corruptions . | . . . . . . Robots Melted . | . . . . . . Combat Hostiles . | . . . . . . Parts Melted 3 | . 1 . . . 2 Heat Transferred 1658 | . 370 185 703 . 400 Parts Sabotaged . | . . . . . . Parts Stolen . | . . . . . . Parts Stripped . | . . . . . . Power Chain Reactions 2 | . . . . . 2 Alert | -11 -10 -10 -10 -9 -6 ------- Run | Yrd Mat Min Sub Scr Fac Maximum Alert Level 3 | . . . . . 3 Low Security (%) 61 | 100 100 100 . . 55 Level 1 14 | . . . . . 16 Level 2 18 | . . . . . 20 Level 3 6 | . . . . . 7 Level 4 . | . . . . . . Level 5 . | . . . . . . High Security . | . . . . . . Max Security . | . . . . . . Peak Influence 856 | . 45 17 . . 856 Initial 17 | . . 17 . . . Average 202 | . 13 3 . . 232 Influence Increases 1806 | . 79 10 . . 1717 Destroy 0b10 Robot/C 640 | . 40 . . . 600 Destroy 0b10 Robot/NC 50 | . . 10 . . 40 Destroy Leader 132 | . 10 . . . 122 Successful Hack 56 | . 14 . . . 42 Disable Machine 120 | . . . . . 120 Anti-Garrison Action 200 | . . . . . 200 Destroy Structure 53 | . . . . . 53 Partial Spotted 30 | . . . . . 30 Lose Combat Pursuer 525 | . 15 . . . 510 Influence Decreases 951 | . 34 55 . . 862 Entered New Map 28 | . . 28 . . . Time Decay 508 | . 34 27 . . 447 Lost Part 225 | . . . . . 225 Lost Ally 40 | . . . . . 40 Purge Threat 150 | . . . . . 150 Squads Dispatched 20 | . 1 . . . 19 Investigation 12 | . 1 . . . 11 Extermination 3 | . . . . . 3 Reinforcement 4 | . . . . . 4 Assault . | . . . . . . Garrison 1 | . . . . . 1 Intercept . | . . . . . . Searches Triggered . | . . . . . . Construction Impeded . | . . . . . . Haulers Reinforced 1 | . . . . . 1 Active Scanning Responses . | . . . . . . Cargo Convoy Interrupts . | . . . . . . Stealth | -11 -10 -10 -10 -9 -6 --------- Run | Yrd Mat Min Sub Scr Fac Distress Signals 4 | . 1 . . . 3 Communications Jammed . | . . . . . . Distress Signals . | . . . . . . Times Spotted 84 | . 2 . 6 . 76 Peak Tracking Total 14 | . 3 . 3 . 14 Tactical Retreats 11 | . 1 . . . 10 Traps | -11 -10 -10 -10 -9 -6 ------- Run | Yrd Mat Min Sub Scr Fac Traps Triggered 6 | . . . . . 6 Indirectly . | . . . . . . Trap Hack Attempts . | . . . . . . Triggered . | . . . . . . Disarmed . | . . . . . . Reprogrammed . | . . . . . . Reused . | . . . . . . Traps Extracted . | . . . . . . Installed . | . . . . . . Triggered . | . . . . . . Machines | -11 -10 -10 -10 -9 -6 ---------- Run | Yrd Mat Min Sub Scr Fac Machines Disabled 8 | . . . . . 8 Max in Single Turn 2 | . . . . . 2 Garrison Access 1 | . . . . . 1 Machines Repaired . | . . . . . . Machines Dismantled . | . . . . . . Machines Sabotaged . | . . . . . . Overloaded Fab Kills . | . . . . . . Hacking | -11 -10 -10 -10 -9 -6 --------- Run | Yrd Mat Min Sub Scr Fac Machines Accessed 23 | . 2 . 1 4 16 Terminals 5 | . 2 . . . 3 Fabricators 2 | . . . . . 2 Repair Stations 1 | . . . . . 1 Recycling Units 8 | . . . . . 8 Scanalyzers 1 | . . . . . 1 Garrison Access 1 | . . . . . 1 Total Hacks 54 | . 3 . 4 21 26 Successful 41 | . 1 . 4 21 15 Failed 13 | . 2 . . . 11 Catastrophic 2 | . 1 . . . 1 Database Lockouts . | . . . . . . Manual 20 | . 3 . . . 17 Terminals 11 | . 3 . . . 8 Fabricators 3 | . . . . . 3 Repair Stations 3 | . . . . . 3 Recycling Units 9 | . . . . . 9 Scanalyzers 2 | . . . . . 2 Garrison Access 1 | . . . . . 1 Terminal Hacks 27 | . . . 4 21 2 Record 24 | . . . 4 20 . Open Door 1 | . . . . 1 . Terminal Index 1 | . . . . . 1 Unreport Threat 1 | . . . . . 1 Fabricator Hacks 2 | . . . . . 2 Network Status 1 | . . . . . 1 Build 1 | . . . . . 1 Repair Station Hacks 2 | . . . . . 2 Scan Component 1 | . . . . . 1 Repair 1 | . . . . . 1 Recycling Unit Hacks . | . . . . . . Scanalyzer . | . . . . . . Garrison Access Hacks . | . . . . . . Unauthorized Hacks 10 | . 1 . . . 9 Terminals 2 | . 1 . . . 1 Botnet 2 | . 1 . . . 1 Fabricators . | . . . . . . Repair Stations 7 | . . . . . 7 Recycling Units . | . . . . . . Fedlink 7 | . . . . . 7 Scanalyzers . | . . . . . . Garrison Access 1 | . . . . . 1 Jam 1 | . . . . . 1 Data Cores Recovered . | . . . . . . Used . | . . . . . . Hacking Detections 8 | . 1 . . . 7 Full Trace Events 2 | . 1 . . . 1 Feedback Events . | . . . . . . Feedback Blocked . | . . . . . . Robot Schematics Acquired . | . . . . . . Robots Built 2 | . . . . . 2 Authchips . | . . . . . . Time 67 | . . . . . 67 Total Robot Build Rating 8 | . . . . . 8 Part Schematics Acquired . | . . . . . . Parts Built . | . . . . . . Authchips . | . . . . . . Time . | . . . . . . Total Part Build Rating . | . . . . . . Parts Repaired 1 | . . . . . 1 Time 50 | . . . . . 50 Parts Recycled . | . . . . . . Recycled Matter . | . . . . . . Retrieved Matter . | . . . . . . Retrieved Components . | . . . . . . Parts Scanalyzed . | . . . . . . Part Schematics Acquired . | . . . . . . Parts Damaged . | . . . . . . Bothacking | -11 -10 -10 -10 -9 -6 ------------ Run | Yrd Mat Min Sub Scr Fac Used RIF Installer . | . . . . . . Robots Hacked 3 | . . . . . 3 Non-combat 3 | . . . . . 3 Combat . | . . . . . . Robot Hacks Applied 4 | . . . . . 4 parse_system 1 | . . . . . 1 no_distress 1 | . . . . . 1 find_recycling 2 | . . . . . 2 Relay Couplers Released . | . . . . . . Fabnet Peak Effective % . | . . . . . . Robots Rewired . | . . . . . . Allies Hacked . | . . . . . . Hacks Repelled . | . . . . . . Allies | -11 -10 -10 -10 -9 -6 -------- Run | Yrd Mat Min Sub Scr Fac Total Allies 2 | . . . . . 2 Largest Group 2 | . . . . . 2 Highest-Rated Group 64 | . . . . . 64 Highest-Rated Ally 32 | . . . . . 32 Total Orders . | . . . . . . Ally Attacks 12 | . . . . . 12 Total Damage 469 | . . . . . 469 Kills 6 | . . . . . 6 Allies Corrupted . | . . . . . . Allies Melted 1 | . . . . . 1 Intel | -11 -10 -10 -10 -9 -6 ------- Run | Yrd Mat Min Sub Scr Fac Active Infowar (turns) 1205 | . . . . . 1205 Sensors 1205 | . . . . . 1205 Robot Analysis Total . | . . . . . . Derelict Logs Recovered 5 | . . 1 1 3 . Drone Launches . | . . . . . . Drone Recoveries . | . . . . . . Exploration | -11 -10 -10 -10 -9 -6 ------------- Run | Yrd Mat Min Sub Scr Fac Turns Passed 3732 | 39 117 160 305 1076 2035 Spaces Moved 3187 | 33 105 146 184 1119 1600 Core 69 | 2 . . . . 67 Treads 1 | . . . . . 1 Legs . | . . . . . . Wheels 2721 | 31 105 146 184 1119 1136 Hover 1 | . . . . . 1 Flight 395 | . . . . . 395 Fastest Speed 34 | 50 80 80 80 80 34 Average Speed 90 | 78 80 80 84 94 90 Slowest Speed 320 | 80 80 80 95 110 320 Overloaded Moves . | . . . . . . Propulsion Burnouts . | . . . . . . Robots Hopped 1 | . . . . . 1 Potential Cave-ins . | . . . . . . Cave-ins Triggered . | . . . . . . Exploration Rate (%) 32 | 3 18 37 18 70 51 Regions Visited 5 Branch Regions 3 Pre-discovered Areas 7 | . . . 2 4 1 Known Exits Taken 1 | . . . . 1 . Unknown Exits Taken 4 | 1 1 1 1 . . Scrap Searched 2 | . . 1 . 1 . Spaces Dug 11 | . . . . . 11 Terrain Destroyed 55 | . . . . . 55 Melee 9 | . . . . . 9 Projectile 12 | . . . . . 12 AOE 34 | . . . . . 34 Terrain Rammed . | . . . . . . Walls Destroyed . | . . . . . . Machines Disabled . | . . . . . . Actions | -11 -10 -10 -10 -9 -6 --------- Run | Yrd Mat Min Sub Scr Fac Total 3749 | 45 121 173 254 1145 2011 Wait 227 | . 6 11 21 1 188 Move 3180 | 32 104 145 183 1118 1598 Hop 1 | . . . . . 1 Pick Up 61 | 8 2 5 6 10 30 Fast Attach 24 | . . . . 1 23 Attach 38 | 5 . 2 6 1 24 Detach 8 | . . 1 . 3 4 Swap 7 | . . 1 3 . 3 Drop 28 | . . . . 8 20 Fire 75 | . 9 8 35 . 23 Melee 97 | . . . . . 97 Ram . | . . . . . . Kick . | . . . . . . Crush . | . . . . . . Escape Stasis . | . . . . . . Rewire 3 | . . . . 3 . Trap . | . . . . . . Miscellaneous . | . . . . . . Route ------- -11/Scrapyard -10/Materials -10/Mines -10/Subcaves -9/Scraptown -6/Factory (discovered 2 exits: [*Fac] / [*Low]) History --------- Turn | Location | Event 10 | -11/Scrapyard | Discovered new exit (range 15) 40 | -11/Scrapyard | Entered Materials 41 | -10/Materials | Met a group of wandering Federalists 143 | -10/Materials | Discovered new exit (range 9) 157 | -10/Materials | Entered Mines 172 | -10/Mines | Learned Materials security intel 300 | -10/Mines | Build established: Mutant 315 | -10/Mines | Discovered new exit (range 3) 317 | -10/Mines | Entered Subcaves 318 | -10/Subcaves | Approached by a straggling Scientist 369 | -10/Subcaves | Visited Clippyterm 372 | -10/Subcaves | Learned location of Deep Caves (-7) 372 | -10/Subcaves | Learned Factory emergency access door positions 438 | -10/Subcaves | Learned location of Zion (-7) 545 | -10/Subcaves | Ambushed by Subdwellers from Twisted Machinery 549 | -10/Subcaves | Scientist uncovered a shortcut to Scraptown 582 | -10/Subcaves | Core integrity fell below 50% 622 | -10/Subcaves | Entered Scraptown 645 | -9/Scraptown | Lost 6 parts (2p1n1u2w) 770 | -9/Scraptown | Visited IN-MT5's Study 803 | -9/Scraptown | Visited Shadow of the Wyrm 813 | -9/Scraptown | Visited The Evicted 822 | -9/Scraptown | Visited Assassins FH 826 | -9/Scraptown | Heard Great Nut preacher, LISTEN AND RECITE! 836 | -9/Scraptown | Visited Cyclists 864 | -9/Scraptown | Visited CPS Storage 882 | -9/Scraptown | Visited Symbiants 922 | -9/Scraptown | Scanned Subdweller tech in exchange for log data 924 | -9/Scraptown | Learned Research interactive machine intel 925 | -9/Scraptown | Learned Research terminal intel 926 | -9/Scraptown | Learned location of Quarantine (-2) 974 | -9/Scraptown | Visited UFD Registry 974 | -9/Scraptown | Registered with UFD as "Flakflow" 1074 | -9/Scraptown | Visited Botcube Research 1081 | -9/Scraptown | Found Botcube 1098 | -9/Scraptown | Visited Derelict Rescue Squad 1121 | -9/Scraptown | Found DRS Beacon 1141 | -9/Scraptown | Visited Curators Association 1234 | -9/Scraptown | Visited Scrapoid Research Area 1258 | -9/Scraptown | Visited Scrap Suit Storage 1264 | -9/Scraptown | Found Scrap Suit 1300 | -9/Scraptown | Visited Sword Containment 1334 | -9/Scraptown | Visited Abandonware Association 1341 | -9/Scraptown | Learned abandonware demo "OVRCLOCK.EXE" 1345 | -9/Scraptown | Learned abandonware demo "SHUTEYE.EXE" 1345 | -9/Scraptown | Learned abandonware demo "ERRANTS.EXE" 1370 | -9/Scraptown | Visited Chapter 10 1411 | -9/Scraptown | Visited Cartography Club 1442 | -9/Scraptown | Found Surveybot 17 Chip 1496 | -9/Scraptown | Learned location of Storage (-9) 1496 | -9/Scraptown | Learned location of Upper Caves (-5) 1496 | -9/Scraptown | Learned location of Cetus (-6) 1496 | -9/Scraptown | Learned 8 Research zone layouts 1496 | -9/Scraptown | Learned 20 Lower Caves zone layouts 1496 | -9/Scraptown | Learned 12 Upper Caves zone layouts 1496 | -9/Scraptown | Learned 12 Proximity Caves zone layouts 1496 | -9/Scraptown | Learned 4 Armory zone layouts 1496 | -9/Scraptown | Learned location of 1 exit from Research 1496 | -9/Scraptown | Learned location of 3 exits from Lower Caves 1496 | -9/Scraptown | Identified exit to Factory 1647 | -9/Scraptown | Met Optimus 1647 | -9/Scraptown | Accepted into 0bPrime 1698 | -9/Scraptown | Entered Factory 1698 | -6/Factory | Evolved 8 slots: Propulsion x1, Utility x5, Weapon x2 2244 | -6/Factory | Repaired Broken Antimatter Cannon 2845 | -6/Factory | Loaded intel: 8 recycling unit locations 3042 | -6/Factory | Discovered new exit (range 12) 3066 | -6/Factory | Learned location of Protoforge (-2) 3502 | -6/Factory | Core integrity fell below 50% 3510 | -6/Factory | Core integrity fell below 20% 3543 | -6/Factory | Lost 11 parts (1p2n6u2w) 3577 | -6/Factory | Spotted B-75 Beast 3675 | -6/Factory | Fabricated Y-54 Guardian? 3730 | -6/Factory | Discovered new exit (range 4) 3733 | -6/Factory | Destroyed by G-50 Soldier with Heavy Laser Last Messages --------------- >>Force(Fedlink) _________ .___.__ .__ ____ __ __. \_ _____/___ __| _/| | | |\ \ | |/ _| | __)/ __ \ / __ | | | | |/ | \| < | \\ ___// /_/ | | |___| / | \ | \ \_ / \___ \____ | |_____ \__\__|_ /__|__ \ \/ \/ \/ \/ \/ v3.71\/ UFD!MEMBER UFD!NETWORK<761> UFD!RESOURCES<48> 0bP!READINESS UFD!SANITIZING UFD!... 03723_ ALERT: Suspicious activity at Recycling Unit F001. Dispatching Investigation squad. 03730_ EXIT=FOUND 03733_ Triggered Alarm Trap. 03733_ An alarm sounds. 03733_ ALERT: Alarm triggered, dispatching investigation squad. Map ----- +----------------------------------------------------+ | """" # # #????????????????? | | """" # """ # #????????????????? | | """" # """ # #????????????????? | | ? # """ # ##+#????##???????? | | ?""" # + #???# ???????? | | ?""" # """ # #???# """ "???? | | ??"" # """ # #???# """ "???? | | ??"" # """ # ##### """ ""??? | | ???" # # # ??? | | ???" # # # """ ""??? | | ??? + # """ + """ """?? | | ????? ##+###### """ # """ """ # | | ?????????????????# """ + # | | ?????????????????#T """ " " # """ """ # | | ?????????????????## "Y" # """ """?? | | ??????????????????# """ # """ ""??? | | ????????????+?????# ###### # ??? | | ??????????????????# ?????# # ??? | | ??????????????????# ?????# # ??? | | ??????????????????# ?????# # ??? | | ??????????????????# gg?????# #######???? | | ??+???????????????# ###??# #?????????? | | ??????????????????# g ####+########??? | | ??????????????????# g g # #?? | | ??????????????????# g ; #?? | | ??????????????????# g @# #?? | | ??????????????????# # #?? | | ??????????????????# # #?? | | ??????????????????# ##############?? | | ??????????????????# ??????????????? | | ??????????????????# ??????????????? | | ??????????????????+ ??????????????? | | ??????????????????# ??????????????? | | ??????????????????+ ??????????????? | | ??????????????????###+#####??????????????? | | ?????????????????????????????????????????? | | ?????????????????????????????????????????? | | ?????????????????????????????????????????? | | ?????????????????????????????????????????? | | ?????????????????????????????????????????? | | ?????????????????????????????????????????? | | ?????????????????????????????????????????? | | ?????????????????????????????????????????? | | ?????????????????????????????????????????? | | ?????????????????????????????????????????? | | ?????????????????????????????????????????? | | ?????????????????????????????????????????? | | ?????????????????????????????????????????? | | ?????????????????????????????????????????? | | ?????????????????????????????????????????? | +----------------------------------------------------+ Best States ------------- Heat Dissipation 56 Coolant Potential 50 Energy Generation 18 Energy Capacity 310 Matter Stores 300 Matter Capacity 300 Sight Range 16 Robot Scan Range 16 Terrain Scan Density 10 Armor Coverage 225 Utility Shielding 33 Evasion (%) 63 Melee Accuracy 18 Recoil Reduction 1 Matter Filtering 30 Offensive Hacking 30 Item Schematics ----------------- None Robot Schematics ------------------ None Fabricated ------------ Y-54 Guardian | x2 | -6/Factory | Preloaded Repaired ---------- Antimatter Cannon | 99% | -6/Factory | Broken Alien Tech Used ----------------- None Achievements -------------- None Challenges ------------ None Game ------ Seed TitaniumDroneAccelerator Manual? 0 Play Time 00:50:05 Cumulative 259.9 hours Start 2025.05.05 @ 22:17:20 End 2025.05.05 @ 23:11:14 Sessions 1 Manual Loads 0 Difficulty Rogue Special Mode None Game No. 208 Rogue 199 Adventurer 9 Explorer 0 Win Type - Total 2 Types 1/0/0/1/0/0/0/0/0/0 Lore% 83 Gallery% 69 Achievement% 64 Wizard Run 0 Options --------- Layout 1 ASCII 0 Keyboard 0 Movement Numpad Keybinds 0 Fullscreen 1 Font 24/Smallcaps Map View 50x35 Zoom Use 0% Tactical HUD 1 Map Filters NONE Filters NONE Steam 1 RUN: 9a686e81-a80d-4322-8046-79938d15bf4e